Cogmind - Beta 11 X10 @@@ ROGUE MODE // 2022.02.09 @ 16:31:40 Player: Terminus Result: Destroyed by 8R-AWN with 8R-AWN's Boregun Performance ------------- Evolutions (1) 500 Regions Visited (5) 1000 Robots Destroyed (44) 220 Value Destroyed (809) 809 Prototype IDs (29) 580 Alien Tech Used (0) 0 Bonus (300) 300 TOTAL SCORE: 3409 Bonus ------- Aligned with FarCom 300 Cogmind --------- Core Integrity 0/400 Matter 197/300 Energy 96/100 System Corruption 0% Temperature Cool (0) Movement Core (250) Ox4 Location -9/Exiles Parts ------- > --- POWER (1) -------- (None) > --- PROPULSION (3) --- (None) > --- UTILITY (3) ------ Medium Storage Unit > --- WEAPON (2) ------- Mining Claw Mining Claw > --- INVENTORY (10) --- Heavy Ion Engine AS-neutralizer No. 17b 8R-AWN's Boregun Rocket Launcher Mace Maul Peak State ------------ > --- POWER ------------ Ion Engine > --- PROPULSION ------- Aluminum Leg Aluminum Leg VSS Leg > --- UTILITY ---------- Improved Heat Sink Medium Storage Unit Hardened Medium Armor Plating > --- WEAPON ----------- Maul Maul > --- INVENTORY -------- Aluminum Leg Heat Sink Hardened Light Armor Plating Particle Gun Rocket Launcher Mining Claw Mining Claw [Rating: 18] Favorites ----------- Power Improved Ion Engine Engine Improved Ion Engine Propulsion Aluminum Leg Leg Aluminum Leg Utility Medium Storage Unit Device Heat Sink Storage Medium Storage Unit Protection Hardened Medium Armor Plating Weapon Maul Energy Gun Medium Laser Ballistic Gun Light Assault Rifle Launcher Rocket Launcher Impact Weapon Maul Slashing Weapon Mining Claw Build | -11 -10 -10 -9 -9 -9 ------- Run | Scr Mat Min Mat Min Exi Slots Evolved 2 | . . . 2 . . Power . | . . . . . . Propulsion 1 | . . . 1 . . Utility 1 | . . . 1 . . Weapon . | . . . . . . Parts Attached 52 | 6 19 3 12 3 9 Power 7 | 1 2 1 2 . 1 Engine 7 | 1 2 1 2 . 1 Core . | . . . . . . Reactor . | . . . . . . Propulsion 16 | 2 6 2 4 . 2 Treads . | . . . . . . Leg 16 | 2 6 2 4 . 2 Wheel . | . . . . . . Hover . | . . . . . . Flight . | . . . . . . Utility 11 | 1 4 . 3 1 2 Device 3 | . 2 . 1 . . Storage 6 | 1 2 . 1 1 1 Processor . | . . . . . . Hackware . | . . . . . . Protection 2 | . . . 1 . 1 Artifact . | . . . . . . Weapon 18 | 2 7 . 3 2 4 Energy Gun 4 | . 4 . . . . Energy Cannon . | . . . . . . Ballistic Gun 2 | 2 . . . . . Ballistic Cannon . | . . . . . . Launcher 4 | . 1 . 1 1 1 Special Weapon . | . . . . . . Impact Weapon 5 | . 2 . 2 1 . Slashing Weapon 3 | . . . . . 3 Piercing Weapon . | . . . . . . Special Melee Weapon . | . . . . . . Unidentified Prototypes . | . . . . . . Parts Lost 13 | . 2 1 1 . 9 Power 4 | . 2 1 . . 1 Propulsion 5 | . . . . . 5 Utility 4 | . . . 1 . 3 Weapon . | . . . . . . Highest Loss Streak 6 | . 1 1 1 . 6 To Critical Strikes 3 | . . . . . 3 Average Slot Usage (%) 98 | . 97 100 99 100 95 Engine 11 | . 13 14 11 11 9 Leg 30 | . 27 28 33 33 30 Device 11 | . 12 14 11 11 10 Storage 12 | . 14 14 11 11 11 Protection 6 | . . . 10 11 10 Energy Gun 3 | . 13 . . . . Ballistic Gun 2 | . 8 . . . . Impact Weapon 16 | . 5 28 22 21 14 Slashing Weapon 1 | . . . . . 6 Naked Turns . | . . . . . . Heaviest Build 42 | 12 21 22 32 42 41 Greatest Support 35 | 20 20 20 32 32 35 Greatest Overweight (x) 2 | 2 1 1 . 1 1 Average Overweight (x) . | . . . . . . Largest Inventory Capacity 15 | 8 10 10 10 15 15 Average Capacity 11 | 6 9 10 10 14 12 Most Carried 14 | 2 10 10 10 14 14 Average Carried 10 | 1 8 9 9 13 10 Final Capacity 15 | 8 10 10 10 15 10 Final Carried 14 | 2 10 9 10 14 6 Class Distribution -------------------- 89% | Mutant 10% | Scavenger-Mutant Dominant Class ---------------- Mutant | -10/Materials Mutant | -10/Mines Mutant | -9/Materials Mutant | -9/Mines Mutant | -9/Exiles Resources | -11 -10 -10 -9 -9 -9 ----------- Run | Scr Mat Min Mat Min Exi Matter Collected 766 | 241 309 30 126 10 50 Remotely . | . . . . . . Salvage Created 1265 | . 536 156 477 95 1 Parts 58 | . 31 6 18 3 . Haulers Intercepted 5 | . 2 . 3 . . Recyclers Shooed . | . . . . . . Parts Field Recycled . | . . . . . . Retrieved Matter . | . . . . . . Parts Self-Destructed . | . . . . . . Prevented . | . . . . . . Kills | -11 -10 -10 -9 -9 -9 ------- Run | Scr Mat Min Mat Min Exi Combat Hostiles Destroyed 29 | . 11 5 6 3 4 Melee 10 | . . 4 4 2 . Guns 7 | . 7 . . . . AOE 10 | . 3 . 2 1 4 Classes Destroyed 12 | . 7 . 2 2 1 Worker 4 | . 1 . 2 1 . Builder 3 | . 1 2 . . . Tunneler 2 | . . . . 2 . Hauler 5 | . 2 . 3 . . Recycler 2 | . 1 . 1 . . Operator 1 | . . . 1 . . Watcher 2 | . 1 . 1 . . Swarmer 9 | . 3 3 2 1 . Grunt 14 | . 8 2 3 1 . Brawler 1 | . . . . 1 . Sentry 1 | . . . 1 . . Assembled 4 | . . . . . 4 Best Kill Streak 6 | . 6 3 4 2 4 Combat Bots Only 4 | . 4 3 2 1 4 Max Kills in Single Turn 4 | . 4 1 2 2 1 Gunslinging . | . . . . . . Exploded 3 | . 3 . 2 1 1 Melee 1 | . . 1 1 1 . Uniques/NPCs Destroyed . | . . . . . . Combat | -11 -10 -10 -9 -9 -9 -------- Run | Scr Mat Min Mat Min Exi Damage Taken 2426 | . 533 185 265 221 1222 Core 507 | . 90 17 14 11 375 Absorbed by Shields . | . . . . . . Regen/Repaired (Parts) 73 | . 73 . . . . Core Remaining (%) 78 | 100 . 57 . . . Volleys Fired 68 | . 59 . 1 1 7 Largest 2 | . 2 . 1 1 1 Hottest 115 | . 115 . 33 33 33 Shots Fired 124 | . 115 . 1 1 7 Gun 112 | . 112 . . . . Cannon . | . . . . . . Launcher 12 | . 3 . 1 1 7 Special . | . . . . . . Kinetic 82 | . 82 . . . . Thermal 30 | . 30 . . . . Explosive 12 | . 3 . 1 1 7 Electromagnetic . | . . . . . . Robot Hit Streak 16 | . 16 . 1 2 4 Robot Miss Streak 4 | . 4 . . . . Penetration Max . | . . . . . . Secondary Targets . | . . . . . . Shots Hit Robots 172 | . 81 9 23 16 43 Core Hits 52 | . 30 1 8 3 10 Critical Kills 2 | . . . 2 . . Critical Parts Destroyed 13 | . . 4 6 3 . Critical Strikes 18 | . 2 4 8 4 . Burn 2 | . 2 . . . . Smash 16 | . . 4 8 4 . Melee Attacks 142 | . 13 17 30 18 64 Impact 78 | . 13 17 30 18 . Slashing 64 | . . . . . 64 Piercing . | . . . . . . Sneak Attacks 13 | . 2 2 7 2 . Combat Hostiles . | . . . . . . Follow-up Attacks 19 | . 2 2 3 1 11 Damage Inflicted 5003 | . 1465 510 1264 610 1154 Guns 685 | . 685 . . . . Cannons . | . . . . . . Explosions 774 | . 380 . 69 86 239 Melee 3528 | . 397 510 1182 524 915 Ramming 16 | . 3 . 13 . . Kinetic 434 | . 434 . . . . Thermal 251 | . 251 . . . . Explosive 752 | . 358 . 69 86 239 Electromagnetic 22 | . 22 . . . . Impact 2613 | . 397 510 1182 524 . Slashing 915 | . . . . . 915 Piercing . | . . . . . . Highest Corruption . | . . . . . . Average Corruption . | . . . . . . Corruption Purged . | . . . . . . Corruption Blocked . | . . . . . . Overload Shots . | . . . . . . Overflow Damage 1122 | . 53 372 491 172 34 Projectiles . | . . . . . . Explosions 47 | . 8 . . 5 34 Melee 1075 | . 45 372 491 167 . Knockbacks 5 | . 1 1 . 3 . Impact 5 | . 1 1 . 3 . Kinetic . | . . . . . . Secondary . | . . . . . . Self-Inflicted Damage 37 | . . . . . 37 Shots 1 | . . . . . 1 Rammed . | . . . . . . Targets Rammed 3 | . 2 . 1 . . Kicked 3 | . 2 . 1 . . Crushed . | . . . . . . Highest Temperature 36 | . 36 . . . 9 Average Temperature 10 | . 10 . . . 9 Received Heat Transfer 491 | . 294 36 93 48 20 Siege Activations . | . . . . . . Robots Corrupted . | . . . . . . Combat Hostiles . | . . . . . . Parts Fried 12 | . 2 4 3 3 . Impact Corruptions 35 | . 4 10 15 6 . Robots Melted . | . . . . . . Combat Hostiles . | . . . . . . Parts Melted . | . . . . . . Heat Transferred 814 | . 814 . . . . Parts Sabotaged . | . . . . . . Parts Stolen . | . . . . . . Parts Stripped . | . . . . . . Power Chain Reactions 1 | . 1 . . . . Missiles Intercepted . | . . . . . . Alert | -11 -10 -10 -9 -9 -9 ------- Run | Scr Mat Min Mat Min Exi Peak Influence 248 | . 248 151 200 102 . Initial 96 | . . 96 25 47 . Average 84 | . 115 101 74 40 . Maximum Alert Level 1 | . 1 . 1 . . Low Security (%) 91 | 100 78 100 95 100 . Level 1 8 | . 21 . 4 . . Level 2 . | . . . . . . Level 3 . | . . . . . . Level 4 . | . . . . . . Level 5 . | . . . . . . High Security . | . . . . . . Max Security . | . . . . . . Squads Dispatched 7 | . 2 1 4 . . Investigation 4 | . 2 1 1 . . Extermination . | . . . . . . Reinforcement 3 | . . . 3 . . Assault . | . . . . . . Garrison . | . . . . . . Intercept . | . . . . . . Construction Impeded . | . . . . . . Haulers Reinforced . | . . . . . . Active Scanning Responses . | . . . . . . Cargo Convoy Interrupts . | . . . . . . Stealth | -11 -10 -10 -9 -9 -9 --------- Run | Scr Mat Min Mat Min Exi Distress Signals 2 | . 2 . . . . Communications Jammed . | . . . . . . Distress Signals . | . . . . . . Times Spotted 66 | . 27 7 25 2 5 Peak Tracking Total 9 | . 7 3 3 2 9 Tactical Retreats 4 | . 2 . 2 . . Traps | -11 -10 -10 -9 -9 -9 ------- Run | Scr Mat Min Mat Min Exi Traps Triggered 1 | . 1 . . . . Indirectly . | . . . . . . Trap Hack Attempts . | . . . . . . Triggered . | . . . . . . Disarmed . | . . . . . . Reprogrammed . | . . . . . . Reused 2 | . . . . . 2 Traps Extracted . | . . . . . . Installed 4 | . . . . . 4 Triggered . | . . . . . . Most Traps Carried 4 | . . . . 4 4 Exploded 3 | . . . . . 3 Machines | -11 -10 -10 -9 -9 -9 ---------- Run | Scr Mat Min Mat Min Exi Machines Disabled 5 | . 2 . . . 3 Max in Single Turn 1 | . 1 . . . 1 Machines Sabotaged . | . . . . . . Garrisons Compromised . | . . . . . . Overloaded Fab Kills . | . . . . . . Hacking | -11 -10 -10 -9 -9 -9 --------- Run | Scr Mat Min Mat Min Exi Machines Accessed 18 | . 10 1 5 . 2 Terminals 12 | . 7 . 5 . . Fabricators . | . . . . . . Repair Stations 1 | . 1 . . . . Recycling Units 2 | . 2 . . . . Scanalyzers . | . . . . . . Garrison Access . | . . . . . . Total Hacks 61 | . 30 1 22 . 8 Successful 41 | . 20 1 12 . 8 Failed 19 | . 10 . 9 . . Catastrophic 2 | . 1 . 1 . . Database Lockouts 1 | . . . 1 . . Manual 37 | . 16 . 20 . 1 Terminals 46 | . 24 . 22 . . Fabricators . | . . . . . . Repair Stations 4 | . 4 . . . . Recycling Units 2 | . 2 . . . . Scanalyzers . | . . . . . . Garrison Access . | . . . . . . Terminal Hacks 26 | . 9 1 8 . 8 Record 7 | . . . . . 7 Robot Analysis 3 | . . . 3 . . Prototype ID Bank 6 | . 5 . 1 . . Open Door 1 | . . 1 . . . Terminal Index 1 | . . . 1 . . Alert Level 4 | . 2 . 2 . . Hauler Manifests 1 | . 1 . . . . Zone Layout 2 | . 1 . 1 . . EX-Prototype ID Bank 1 | . . . . . 1 Fabricator Hacks . | . . . . . . Repair Station Hacks 4 | . 4 . . . . Scan Component 2 | . 2 . . . . Repair 2 | . 2 . . . . Recycling Unit Hacks . | . . . . . . Scanalyzer . | . . . . . . Garrison Access Hacks . | . . . . . . Unauthorized Hacks 11 | . 7 . 4 . . Terminals 9 | . 5 . 4 . . Botnet 9 | . 5 . 4 . . Fabricators . | . . . . . . Repair Stations . | . . . . . . Recycling Units 2 | . 2 . . . . Tunnel 2 | . 2 . . . . Scanalyzers . | . . . . . . Garrison Access . | . . . . . . Data Cores Recovered . | . . . . . . Used . | . . . . . . Hacking Detections 12 | . 7 . 5 . . Full Trace Events . | . . . . . . Feedback Events . | . . . . . . Feedback Blocked . | . . . . . . Robot Schematics Acquired . | . . . . . . Robots Built . | . . . . . . Authchips . | . . . . . . Time . | . . . . . . Total Robot Build Rating . | . . . . . . Part Schematics Acquired . | . . . . . . Parts Built . | . . . . . . Authchips . | . . . . . . Time . | . . . . . . Total Part Build Rating . | . . . . . . Parts Repaired 2 | . 2 . . . . Time 52 | . 52 . . . . Parts Recycled . | . . . . . . Recycled Matter . | . . . . . . Retrieved Matter . | . . . . . . Retrieved Components . | . . . . . . Parts Scanalyzed . | . . . . . . Part Schematics Acquired . | . . . . . . Parts Damaged . | . . . . . . Bothacking | -11 -10 -10 -9 -9 -9 ------------ Run | Scr Mat Min Mat Min Exi Used RIF Installer . | . . . . . . Robots Hacked . | . . . . . . Non-combat . | . . . . . . Combat . | . . . . . . Robot Hacks Applied . | . . . . . . Relay Couplers Released . | . . . . . . Fabnet Peak Effective % . | . . . . . . Robots Rewired . | . . . . . . Allies Hacked . | . . . . . . Hacks Repelled . | . . . . . . Allies | -11 -10 -10 -9 -9 -9 -------- Run | Scr Mat Min Mat Min Exi Total Allies 1 | . . . . 1 . Largest Group 1 | . . . . 1 . Highest-Rated Group 31 | . . . . 31 . Highest-Rated Ally 31 | . . . . 31 . Total Orders . | . . . . . . Ally Attacks . | . . . . . . Total Damage . | . . . . . . Kills . | . . . . . . Allies Corrupted . | . . . . . . Allies Melted . | . . . . . . Intel | -11 -10 -10 -9 -9 -9 ------- Run | Scr Mat Min Mat Min Exi Robot Analysis Total 3 | . . . 3 . . Derelict Logs Recovered 4 | . . 2 . 2 . Drone Launches . | . . . . . . Drone Recoveries . | . . . . . . Exploration | -11 -10 -10 -9 -9 -9 ------------- Run | Scr Mat Min Mat Min Exi Turns Passed 4682 | 57 1170 631 940 763 1121 Spaces Moved 2754 | 56 650 401 678 405 564 Core 31 | 31 . . . . . Treads . | . . . . . . Legs 2723 | 25 650 401 678 405 564 Wheels . | . . . . . . Hover . | . . . . . . Flight . | . . . . . . Fastest Speed 50 | 50 120 120 110 110 110 Average Speed 133 | 83 125 127 110 168 157 Slowest Speed 190 | 150 190 190 110 186 186 Overloaded Moves . | . . . . . . Propulsion Burnouts . | . . . . . . Robots Hopped . | . . . . . . Cave-ins Triggered . | . . . . . . Exploration Rate (%) 65 | 3 97 76 56 92 70 Regions Visited 5 Branch Regions 3 Pre-discovered Areas 3 | . 2 . . . 1 Known Exits Taken 1 | . . 1 . . . Unknown Exits Taken 4 | 1 1 . 1 1 . Scrap Searched 1 | . . 1 . . . Spaces Dug 5 | . . . 5 . . Terrain Destroyed 64 | . 10 . 9 10 35 Melee 5 | . . . 5 . . Projectile . | . . . . . . AOE 59 | . 10 . 4 10 35 Terrain Rammed . | . . . . . . Walls Destroyed . | . . . . . . Machines Disabled . | . . . . . . Actions | -11 -10 -10 -9 -9 -9 --------- Run | Scr Mat Min Mat Min Exi Total 3396 | 63 886 493 819 452 683 Wait 329 | . 118 69 89 21 32 Move 2749 | 55 649 400 677 404 564 Hop . | . . . . . . Pick Up 36 | 2 16 3 6 5 4 Fast Attach 11 | 6 5 . . . . Attach 11 | . 2 1 4 . 4 Detach . | . . . . . . Swap 30 | . 12 2 8 3 5 Drop 35 | . 13 4 7 1 10 Fire 68 | . 59 . 1 1 7 Melee 120 | . 10 14 26 17 53 Ram . | . . . . . . Kick 3 | . 2 . 1 . . Crush . | . . . . . . Escape Stasis . | . . . . . . Rewire . | . . . . . . Trap 4 | . . . . . 4 Miscellaneous . | . . . . . . Route ------- -11/Scrapyard -10/Materials (discovered 5 exits: *Mat x3 / *Min x2) -10/Mines (discovered 2 exits: *Mat x2) -9/Materials (discovered 4 exits: *Mat x2 / [*Min] / [*Sto]) -9/Mines (discovered 4 exits: *Mat x2 / *Exi / [*Zio]) -9/Exiles (discovered 1 exit: [*Min]) History --------- Turn | Location | Event 3 | -11/Scrapyard | Discovered new exit (range 15) 58 | -11/Scrapyard | Entered Materials 307 | -10/Materials | Build established: Mutant 317 | -10/Materials | Discovered new exit (range 15) 691 | -10/Materials | Discovered new exit (range 9) 787 | -10/Materials | Repaired Aluminum Leg 814 | -10/Materials | Repaired Lgt. Assault Rifle 872 | -10/Materials | Discovered new exit (range 7) 965 | -10/Materials | Discovered new exit (range 16) 1072 | -10/Materials | Discovered new exit (range 16) 1228 | -10/Materials | Entered Mines 1387 | -10/Mines | Received a Rocket Launcher from a helpful Derelict 1485 | -10/Mines | Assembled infested the area 1490 | -10/Mines | Assisted by a Guerilla fighting off Assembled 1663 | -10/Mines | Identified exit to Materials 1668 | -10/Mines | Met a Derelict shopkeep closing up shop 1697 | -10/Mines | Discovered exit to Materials (range 4) 1836 | -10/Mines | Learned 4 Materials zone layouts 1859 | -10/Mines | Entered Materials 1859 | -9/Materials | Evolved 2 slots: Propulsion x1, Utility x1 1860 | -9/Materials | Identified exit to Materials 1962 | -9/Materials | Discovered new exit (range 15) 2299 | -9/Materials | Discovered new exit (range 13) 2336 | -9/Materials | Central database locked down 2799 | -9/Materials | Entered Mines 2800 | -9/Mines | A Derelict revealed a hidden shortcut to a safe place 2821 | -9/Mines | Met a Derelict bent on vengeance 2904 | -9/Mines | Found a hidden stash of uninstalled traps 3063 | -9/Mines | Learned location of 2 exits from Materials 3097 | -9/Mines | Learned Materials emergency access door positions 3099 | -9/Mines | Discovered exit to Materials (range 10) 3125 | -9/Mines | Discovered exit to Materials (range 10) 3239 | -9/Mines | Received a Mining Laser from a helpful Derelict 3553 | -9/Mines | Deemed a non-threat by the Exiles lab entrance 3553 | -9/Mines | Discovered new exit (range 5) 3562 | -9/Mines | Entered Exiles 3607 | -9/Exiles | Met 8R-AWN 3639 | -9/Exiles | Met EX-HEX 3750 | -9/Exiles | Met EX-DEC 3788 | -9/Exiles | Learned location of Zion (-7) 4208 | -9/Exiles | Discovered new exit (range 14) 4296 | -9/Exiles | Met EX-BIN 4314 | -9/Exiles | Aligned with FarCom system 4315 | -9/Exiles | Given EX-Vault access code 4341 | -9/Exiles | Opened EX-Vault 4367 | -9/Exiles | Warned to stay clear of 0b10 Research branches 4425 | -9/Exiles | Attacked by the Exiles 4585 | -9/Exiles | Core integrity fell below 50% 4597 | -9/Exiles | Lost 6 parts (1p4n1u) 4649 | -9/Exiles | Core integrity fell below 20% 4683 | -9/Exiles | Destroyed by 8R-AWN with 8R-AWN's Boregun Last Messages --------------- 04638_ Mining Claw follow-up attack on 8R-AWN. 04639_ The unstable cave ceiling collapses. 04641_ Penetrated by HV Slug. 04642_ Mining Claw follow-up attack on 8R-AWN. 04645_ Penetrated by HV Slug. 04648_ Mining Claw follow-up attack on 8R-AWN. 04648_ Penetrated by HV Slug. 04652_ Hrd. Light Armor Plating destroyed. 04655_ Mining Claw follow-up attack on 8R-AWN. 04655_ Penetrated by HV Slug. 04659_ Heat Sink destroyed. 04662_ Penetrated by HV Slug. 04667_ Mining Claw follow-up attack on 8R-AWN. 04669_ Penetrated by HV Slug. 04671_ 8R-AWN Prototype Device ripped off. 04673_ Penetrated by HV Slug. 04676_ Critical hit (Destroy). 04676_ Imp. Aluminum Leg destroyed. 04677_ Mining Claw follow-up attack on 8R-AWN. 04680_ Penetrated by HV Slug. Map ----- +----------------------------------------------------+ | ?????????????????????????????????????????????????? | | ?????????????????????????????????????????????????? | | ?????????????????????????????????????????????????? | | ?????????????????????????????????????????????????? | | ?????????????????????????????????????????????????? | | ?????????????????????????????????????????????????? | | ?????????#####???????????????????????????????????? | | ????????## ##??????????????????????????????????? | | ????????# #??????????????????????????????????? | | ????????# < #??????????????????????????????????? | | ????????# [*!###????????????????????????????????? | | ????????# #????????????????????????????????? | | ????????# ##????????????????????????????????? | | ????????## #?????????????????????????????????? | | ?????????# ##????????????????????????????????? | | ?????????## #????????????#######?????????????? | | ??????????# #######??????#!!! "#?????????????? | | ??????????# #""##?????# "#?????????????? | | ??????????## #?????# "#?????????????? | | ???????????##" ##???## ""#????????????## | | ???????????#"" ##### ""#???????????? | | ???????????#### #; ""#????????????" | | ??????????????## #" ####??????????" | | ???????????????#"## # ##?????????"" | | ???????????????####### ##?????????"" | | ?????????????????????###g@ ?????? | | ???????????????########" # #?????????" | | ???????????????# !!""""" = #?????????# | | ???????????????#! ";# ## #???### | | ???????????????#! "# # #####X# | | ???????????????#! ### # | | ???????????????# !""""""#;#??#;"# | | ???????????????########## #???#;## | | ????????????????????????# #????# # | | ????????????????????????###?????#? | | ??????????????????????????????????? | | ???????????????????????????????????? # # | | ???????????????????????????????????????## | | ????????????????????????????????????????#""" | | ???????????????????????????????????????##" | | ???????????????????????????????????????#"" | | ???????????????????????????????????????#""" | | ??????????????????????????????????????#""" | | ??????????????????????????????????????#""" | | ??????????????????????????????????????#"" | | ??????????????????????????????????????#""" | | ??????????????????????????????????????#"" | | ???????????????????????????????????????#"" | | ???????????????????????????????????????#"""" | | ????????????????????????????????????????# | +----------------------------------------------------+ Best States ------------- Heat Dissipation 42 Energy Generation 12 Energy Capacity 265 Matter Stores 300 Matter Capacity 300 Sight Range 16 Terrain Scan Density 10 Armor Coverage 225 Evasion (%) 55 Item Schematics ----------------- None Robot Schematics ------------------ None Fabricated ------------ Nothing Alien Tech Used ----------------- None Achievements -------------- None Challenges ------------ None Game ------ Seed GreatMicroCore Manual? 0 Play Time 00:30:34 Cumulative 1410.5 hours Start 2022.02.09 @ 15:58:34 End 2022.02.09 @ 16:31:40 Sessions 1 Manual Loads 0 Difficulty Rogue Special Mode None Game No. 496 Rogue 496 Adventurer 0 Explorer 0 Win Type - Total 100 Types 22/12/40/5/1/2/16/1/1 Lore% 95 Gallery% 95 Achievement% 86 Wizard Run 0 Options --------- ASCII 0 Keyboard 0 Movement Numpad Keybinds 0 Fullscreen 1 Font 18/SmallcapsGlow Map View 76x50 Tactical HUD 1 Map Filters NONE Filters NONE Steam 1 RUN: 60e1a5a7-be1e-4710-a86c-373b2702aa1e